fUSD/lending_fUSD_20250510
["ID","MTS","AMOUNT","RATE_DAILY","PERIOD"]
[360568451,1746892287505,-436.6,0.00019541,2]
[360568452,1746892287515,-436.6,0.00019541,2]
[360568453,1746892287526,-877.12,0.00019541,2]
[360568454,1746892287536,-400.0,0.00019541,2]
[360568455,1746892287547,-1654.23,0.00019541,2]
[360568456,1746892287556,-400.0,0.00019541,2]
[360568457,1746892287565,-1117.08,0.00019541,2]
[360568458,1746892287575,-1117.08,0.00019541,2]
[360568459,1746892287586,-400.0,0.00019541,2]
[360568460,1746892287596,-400.0,0.00019541,2]
[360568461,1746892287605,-849.19,0.00019541,2]
[360568462,1746892287615,-530.44,0.00019541,2]
[360568463,1746892287624,-400.05,0.00019541,2]
[360568464,1746892287634,-400.05,0.00019541,2]
[360568465,1746892287643,-511.6,0.00019541,2]
[360568466,1746892287653,-511.6,0.00019541,2]
[360568467,1746892287663,-400.0,0.00019541,2]
[360568468,1746892287673,-400.0,0.00019541,2]
[360568469,1746892287682,-400.0,0.00019541,2]
[360568470,1746892287691,-400.0,0.00019541,2]
[360568471,1746892287701,-503.27358,0.00019541,2]
[360568472,1746892287714,-789.63,0.00019541,2]
[360568473,1746892287724,-789.63,0.00019541,2]
[360568474,1746892287733,-677.94,0.00019541,2]
[360568475,1746892287743,-677.94,0.00019541,2]
[360568476,1746892287753,-400.0,0.00019541,2]
[360568477,1746892287763,-400.0,0.00019541,2]
[360568478,1746892287774,-1153.66,0.00019541,2]
[360568479,1746892287783,-1153.66,0.00019541,2]
[360568480,1746892287794,-835.15,0.00019541,2]
[360568481,1746892287803,-400.0,0.00019541,2]
[360568482,1746892287813,-400.0,0.00019541,2]
[360568483,1746892287822,-400.0,0.00019541,2]
[360568484,1746892287832,-400.0,0.00019541,2]
[360568485,1746892287841,-441.9,0.00019541,2]
[360568486,1746892287852,-6728.984786,0.00019541,2]
[360568487,1746892287861,-152.43110505,0.00019541,2]
[360568488,1746892287871,-924.57,0.00019541,2]
[360568489,1746892287881,-1666.15,0.00019541,2]
[360568490,1746892287891,-564.16,0.00019541,2]
[360568491,1746892287902,-564.16,0.00019541,2]
[360568492,1746892287912,-400.0,0.00019541,2]
[360568493,1746892287922,-294.724467,0.00019541,2]
[360568494,1746892287932,-754.95,0.00019541,2]
[360568495,1746892287941,-754.95,0.00019541,2]
[360568496,1746892287951,-1231.0,0.00019541,2]
[360568497,1746892287961,-819.43,0.00019541,2]
[360568498,1746892287970,-400.0,0.00019542,2]
[360568499,1746892287980,-604.15,0.00019542,2]
[360568500,1746892287990,-400.0,0.00019542,2]
[360568501,1746892287999,-400.0,0.00019542,2]
[360568502,1746892288009,-400.0,0.00019542,2]
[360568503,1746892288018,-400.0,0.00019542,2]
[360568504,1746892288028,-400.0,0.00019542,2]
[360568505,1746892288037,-400.0,0.00019542,2]
[360568506,1746892288048,-400.00068287,0.00019542,2]
[360568507,1746892288059,-400.0,0.00019542,2]
[360568508,1746892288073,-400.0,0.00019542,2]
[360568509,1746892288083,-500.0,0.00019542,2]
[360568510,1746892288092,-400.0,0.00019542,2]
[360568511,1746892288101,-400.0,0.00019542,2]
[360568512,1746892288113,-400.0,0.00019542,2]
[360568513,1746892288123,-1000.0,0.00019542,2]
[360568514,1746892288133,-400.0,0.00019542,2]
[360568515,1746892288142,-400.0,0.00019542,2]
[360568516,1746892288153,-400.0,0.00019542,2]
[360568517,1746892288163,-203.86918534,0.00019542,2]
[360568518,1746892288173,-400.0,0.00019542,2]
[360568519,1746892288184,-400.0,0.00019542,2]
[360568520,1746892288194,-400.0,0.00019542,2]
[360568521,1746892288204,-400.0,0.00019542,2]
[360568522,1746892288214,-400.0,0.00019542,2]
[360568523,1746892288224,-400.0,0.00019542,2]
[360568524,1746892288234,-517.16,0.00019542,2]
[360568525,1746892288245,-361.92,0.00019542,2]
[360568526,1746892288255,-400.0,0.00019542,2]
[360568527,1746892288264,-400.0,0.00019542,2]
[360568528,1746892288273,-400.0,0.00019542,2]
[360568529,1746892288284,-412.6,0.00019542,2]
[360568530,1746892288294,-400.0,0.00019542,2]
[360568531,1746892288304,-400.0,0.00019542,2]
[360568532,1746892288314,-400.0,0.00019542,2]
[360568533,1746892288324,-400.0,0.00019542,2]
[360568534,1746892288334,-499.0,0.00019542,2]
[360568535,1746892288345,-200.0,0.00019542,2]
[360568536,1746892288354,-400.0,0.00019542,2]
[360568537,1746892288363,-400.0,0.00019542,2]
[360568538,1746892288373,-400.0,0.00019542,2]
[360568539,1746892288382,-400.0,0.00019542,2]
[360568540,1746892288392,-400.0,0.00019542,2]
[360568541,1746892288402,-400.0,0.00019542,2]
[360568542,1746892288411,-482.92,0.00019542,2]
[360568543,1746892288421,-400.0,0.00019542,2]
[360568544,1746892288431,-596.56,0.00019542,2]
[360568545,1746892288441,-400.0,0.00019542,2]
[360568546,1746892288452,-400.0,0.00019542,2]
[360568547,1746892288461,-400.0,0.00019542,2]
[360568548,1746892288471,-400.0,0.00019542,2]
[360568549,1746892288480,-400.0,0.00019542,2]
[360568550,1746892288490,-400.0,0.00019542,2]
[360568551,1746892288499,-400.0,0.00019542,2]
[360568552,1746892288508,-400.0,0.00019542,2]
[360568553,1746892288518,-400.0,0.00019542,2]
[360568554,1746892288527,-400.0,0.00019542,2]
[360568555,1746892288537,-445.56,0.00019542,2]
[360568556,1746892288548,-882.53,0.00019542,2]
[360568557,1746892288557,-400.0,0.00019542,2]
[360568558,1746892288567,-470.96,0.00019542,2]
[360568559,1746892288576,-545.54,0.00019542,2]
[360568560,1746892288585,-400.0,0.00019542,2]
[360568561,1746892288595,-400.0,0.00019542,2]
[360568562,1746892288604,-400.0,0.00019542,2]
[360568563,1746892288613,-400.0,0.00019542,2]
[360568564,1746892288623,-400.0,0.00019542,2]
[360568565,1746892288632,-400.0,0.00019542,2]
[360568566,1746892288642,-666.91,0.00019542,2]
[360568567,1746892288653,-1298.01,0.00019542,2]
[360568568,1746892288663,-400.0,0.00019542,2]
[360568569,1746892288672,-400.0,0.00019542,2]
[360568570,1746892288681,-471.6,0.00019542,2]
[360568571,1746892288691,-608.25,0.00019542,2]
[360568572,1746892288700,-441.03,0.00019542,2]
[360568573,1746892288709,-400.0,0.00019542,2]
[360568574,1746892288720,-432.15,0.00019542,2]
[360568575,1746892288729,-400.0,0.00019542,2]
[360568576,1746892288739,-400.0,0.00019542,2]
[360568577,1746892288748,-400.0,0.00019542,2]
[360568578,1746892288758,-400.0,0.00019542,2]
[360568579,1746892288767,-248.37321473,0.00019542,2]
[360568580,1746892288777,-400.0,0.00019542,2]
[360568581,1746892288786,-510.25,0.00019542,2]
[360568582,1746892288795,-641.72,0.00019542,2]
[360568583,1746892288805,-343.38923819,0.00019542,2]
[360568584,1746892288814,-400.0,0.00019542,2]
[360568585,1746892288824,-400.0,0.00019542,2]
[360568586,1746892288833,-509.11,0.00019542,2]
[360568587,1746892288843,-456.8,0.00019542,2]
[360568588,1746892288853,-400.0,0.00019542,2]
[360568589,1746892288863,-575.21,0.00019542,2]
[360568590,1746892288872,-481.36,0.00019542,2]
[360568591,1746892288881,-482.73,0.00019542,2]
[360568592,1746892288891,-467.42,0.00019542,2]
[360568593,1746892288900,-400.0,0.00019542,2]
[360568594,1746892288910,-571.6,0.00019542,2]
[360568595,1746892288919,-697.14,0.00019542,2]
[360568596,1746892288929,-763.58,0.00019542,2]
[360568597,1746892288938,-400.0,0.00019542,2]
[360568598,1746892288948,-475.8,0.00019542,2]
[360568599,1746892288957,-400.0,0.00019542,2]
[360568600,1746892288967,-400.0,0.00019542,2]
[360568601,1746892288976,-400.0,0.00019542,2]
[360568602,1746892288985,-525.94,0.00019542,2]
[360568603,1746892288995,-686.91,0.00019542,2]
[360568604,1746892289004,-450.32765963,0.00019542,2]
[360568605,1746892289014,-400.0,0.00019542,2]
[360568606,1746892289023,-400.0,0.00019542,2]
[360568607,1746892289033,-540.0,0.00019542,2]
[360568608,1746892289042,-400.0,0.00019542,2]
[360568609,1746892289051,-400.0,0.00019542,2]
[360568610,1746892289064,-259.82874725,0.00019542,2]
[360568611,1746892289073,-400.0,0.00019542,2]
[360568612,1746892289083,-631.05,0.00019542,2]
[360568613,1746892289092,-400.0,0.00019542,2]
[360568614,1746892289102,-400.0,0.00019542,2]
[360568615,1746892289113,-740.81,0.00019542,2]
[360568616,1746892289122,-626.28,0.00019542,2]
[360568617,1746892289132,-400.0,0.00019542,2]
[360568618,1746892289142,-401.37,0.00019542,2]
[360568619,1746892289151,-658.5,0.00019542,2]
[360568620,1746892289161,-575.03,0.00019542,2]
[360568621,1746892289171,-400.0,0.00019542,2]
[360568622,1746892289181,-400.0,0.00019542,2]
[360568623,1746892289191,-400.0,0.00019542,2]
[360568624,1746892289201,-400.0,0.00019542,2]
[360568625,1746892289211,-400.0,0.00019542,2]
[360568626,1746892289221,-400.0,0.00019542,2]
[360568627,1746892289231,-400.0,0.00019542,2]
[360568628,1746892289240,-400.0,0.00019542,2]
[360568629,1746892289249,-603.59,0.00019542,2]
[360568630,1746892289260,-497.86,0.00019542,2]
[360568631,1746892289269,-400.0,0.00019542,2]
[360568632,1746892289279,-400.0,0.00019542,2]
[360568633,1746892289288,-588.13,0.00019542,2]
[360568634,1746892289298,-400.0,0.00019542,2]
[360568635,1746892289308,-534.94,0.00019542,2]
[360568636,1746892289317,-914.0,0.00019542,2]
[360568637,1746892289326,-400.0,0.00019542,2]
[360568638,1746892289337,-613.64,0.00019542,2]
[360568639,1746892289347,-193.10845015,0.00019542,2]
[360568640,1746892289356,-423.93,0.00019542,2]
[360568641,1746892289365,-400.0,0.00019542,2]
[360568642,1746892289375,-400.0,0.00019542,2]
[360568643,1746892289385,-507.15,0.00019542,2]
[360568644,1746892289395,-400.0,0.00019542,2]
[360568645,1746892289404,-400.0,0.00019542,2]
[360568646,1746892289414,-458.7,0.00019542,2]
[360568647,1746892289424,-152.731047,0.00019542,2]
[360568648,1746892289433,-400.0,0.00019542,2]
[360568649,1746892289444,-400.0,0.00019542,2]
[360568650,1746892289454,-834.79,0.00019542,2]
[360568651,1746892289463,-151.0,0.00019542,2]
[360568652,1746892289472,-824.5,0.00019542,2]
[360568653,1746892289481,-278.06563342,0.00019542,2]
[360568654,1746892289490,-400.0,0.00019542,2]
[360568655,1746892289499,-151.0,0.00019542,2]
[360568656,1746892289508,-400.0,0.00019542,2]
[360568657,1746892289517,-400.0,0.00019542,2]
[360568658,1746892289527,-400.0,0.00019542,2]
[360568659,1746892289536,-1647.94,0.00019542,2]
[360568660,1746892289545,-400.0,0.00019542,2]
[360568661,1746892289554,-644.71,0.00019542,2]
[360568662,1746892289563,-400.0,0.00019542,2]
[360568663,1746892289573,-1500.56,0.00019542,2]
[360568664,1746892289582,-400.0,0.00019542,2]
[360568665,1746892289592,-400.0,0.00019542,2]
[360568666,1746892289602,-400.0,0.00019542,2]
[360568667,1746892289612,-358.6460921,0.00019542,2]
[360568668,1746892289622,-1598.31,0.00019542,2]
[360568669,1746892289635,-400.0,0.00019542,2]
[360568670,1746892289645,-646.15,0.00019542,2]
[360568671,1746892289655,-400.0,0.00019542,2]
[360568672,1746892289664,-453.09,0.00019542,2]
[360568673,1746892289674,-400.0,0.00019542,2]
[360568674,1746892289683,-400.0,0.00019542,2]
[360568675,1746892289693,-400.0,0.00019542,2]
[360568676,1746892289703,-400.0,0.00019542,2]
[360568677,1746892289713,-400.0,0.00019542,2]
[360568678,1746892289724,-842.07,0.00019542,2]
[360568679,1746892289734,-400.0,0.00019542,2]
[360568680,1746892289743,-467.21288994,0.00019542,2]
[360568681,1746892289753,-400.0,0.00019542,2]
[360568682,1746892289763,-636.83,0.00019542,2]
[360568683,1746892289772,-997.01,0.00019542,2]
[360568684,1746892289782,-400.0,0.00019542,2]
[360568685,1746892289792,-400.0,0.00019542,2]
[360568686,1746892289801,-405.7,0.00019542,2]
[360568687,1746892289811,-583.53,0.00019542,2]
[360568688,1746892289820,-400.0,0.00019542,2]
[360568689,1746892289830,-400.0,0.00019542,2]
[360568690,1746892289840,-242.18606977,0.00019542,2]
[360568691,1746892289850,-400.0,0.00019542,2]
[360568692,1746892289860,-400.0,0.00019542,2]
[360568693,1746892289869,-549.64209061,0.00019542,2]
[360568694,1746892289879,-400.0,0.00019542,2]
[360568695,1746892289888,-400.0,0.00019542,2]
[360568696,1746892289898,-400.0,0.00019542,2]
[360568697,1746892289908,-441.48,0.00019542,2]
[360568698,1746892289917,-400.0,0.00019542,2]
[360568699,1746892289927,-400.0,0.00019542,2]
[360568700,1746892289936,-400.0,0.00019542,2]
[360568701,1746892289945,-948.97,0.00019542,2]
[360568702,1746892289955,-788.6,0.00019542,2]
[360568703,1746892289964,-400.0,0.00019542,2]
[360568704,1746892289974,-500.0,0.00019542,2]
[360568705,1746892289983,-400.0,0.00019542,2]
[360568706,1746892289993,-400.0,0.00019542,2]
[360568707,1746892290003,-3208.863391,0.00019542,2]
[360568708,1746892290012,-400.0,0.00019542,2]
[360568709,1746892290022,-400.0,0.00019542,2]
[360568710,1746892290032,-400.0,0.00019542,2]
[360568711,1746892290192,-3208.863391,0.00019542,2]
[360568712,1746892290216,-400.0,0.00019542,2]
[360568713,1746892290226,-512.77,0.00019542,2]
[360568714,1746892290236,-400.0,0.00019542,2]
[360568715,1746892290245,-400.0,0.00019542,2]
[360568716,1746892290256,-400.0,0.00019542,2]
[360568717,1746892290265,-151.0,0.00019542,2]
[360568718,1746892290275,-605.16,0.00019542,2]
[360568719,1746892290285,-400.0,0.00019542,2]
[360568720,1746892290295,-414.14,0.00019542,2]
[360568721,1746892290304,-400.0,0.00019542,2]
[360568722,1746892290317,-400.0,0.00019542,2]
[360568723,1746892290326,-400.0,0.00019542,2]
[360568724,1746892290337,-400.0,0.00019542,2]
[360568725,1746892290347,-739.69,0.00019542,2]
[360568726,1746892290357,-417.66,0.00019542,2]
[360568727,1746892290366,-878.18,0.00019542,2]
[360568728,1746892290375,-438.72,0.00019542,2]
[360568729,1746892290384,-253.86459601,0.00019542,2]
[360568730,1746892290394,-400.0,0.00019542,2]
[360568731,1746892290403,-505.48,0.00019542,2]
[360568732,1746892290412,-400.0,0.00019542,2]
[360568733,1746892290422,-400.0,0.00019542,2]
[360568734,1746892290431,-594.16,0.00019542,2]
[360568735,1746892290441,-406.49,0.00019542,2]
[360568736,1746892290450,-400.0,0.00019542,2]
[360568737,1746892290459,-400.0,0.00019542,2]
[360568738,1746892290469,-625.46,0.00019542,2]
[360568739,1746892290479,-400.0,0.00019542,2]
[360568740,1746892290488,-400.0,0.00019542,2]
[360568741,1746892290497,-400.0,0.00019542,2]
[360568742,1746892290507,-809.99,0.00019542,2]
[360568743,1746892290517,-504.03,0.00019542,2]
[360568744,1746892290526,-674.51,0.00019542,2]
[360568745,1746892290535,-400.0,0.00019542,2]
[360568746,1746892290546,-304.59314095,0.00019542,2]
[360568747,1746892290555,-400.0,0.00019542,2]
[360568748,1746892290564,-400.0,0.00019542,2]
[360568749,1746892290573,-400.0,0.00019542,2]
[360568750,1746892290583,-419.11,0.00019542,2]
[360568751,1746892290592,-151.0,0.00019542,2]
[360568752,1746892290602,-515.58,0.00019542,2]
[360568753,1746892290611,-400.0,0.00019542,2]
[360568754,1746892290621,-400.0,0.00019542,2]
[360568755,1746892290630,-400.0,0.00019542,2]
[360568756,1746892290639,-400.0,0.00019542,2]
[360568757,1746892290650,-400.0,0.00019542,2]
[360568758,1746892290660,-588.95,0.00019542,2]
[360568759,1746892290669,-400.0,0.00019542,2]
[360568760,1746892290679,-400.0,0.00019542,2]
[360568761,1746892290689,-400.0,0.00019542,2]
[360568762,1746892290699,-400.0,0.00019542,2]
[360568763,1746892290708,-151.0,0.00019542,2]
[360568764,1746892290718,-1754.01,0.00019542,2]
[360568765,1746892290727,-400.0,0.00019542,2]
[360568766,1746892290738,-400.0,0.00019542,2]
[360568767,1746892290748,-400.0,0.00019542,2]
[360568768,1746892290757,-400.0,0.00019542,2]
[360568769,1746892290767,-1238.53,0.00019542,2]
[360568770,1746892290777,-400.0,0.00019542,2]
[360568771,1746892290786,-400.0,0.00019542,2]
[360568772,1746892290796,-418.52,0.00019542,2]
[360568773,1746892290806,-552.43,0.00019542,2]
[360568774,1746892290815,-488.54,0.00019542,2]
[360568775,1746892290825,-684.12,0.00019542,2]
[360568776,1746892290835,-400.0,0.00019542,2]
[360568777,1746892290845,-528.34,0.00019542,2]
[360568778,1746892290855,-400.0,0.00019542,2]
[360568779,1746892290864,-400.0,0.00019542,2]
[360568780,1746892290873,-400.0,0.00019542,2]
[360568781,1746892290883,-846.92,0.00019542,2]
[360568782,1746892290893,-637.44,0.00019542,2]
[360568783,1746892290903,-712.94,0.00019542,2]
[360568784,1746892290912,-400.0,0.00019542,2]
[360568785,1746892290922,-408.65467646,0.00019542,2]
[360568786,1746892290931,-400.0,0.00019542,2]
[360568787,1746892290941,-984.44,0.00019542,2]
[360568788,1746892290950,-400.0,0.00019542,2]
[360568789,1746892290960,-400.0,0.00019542,2]
[360568790,1746892290970,-400.0,0.00019542,2]
[360568791,1746892290979,-400.0,0.00019542,2]
[360568792,1746892290989,-400.0,0.00019542,2]
[360568793,1746892290999,-400.0,0.00019542,2]
[360568794,1746892291008,-1083.14,0.00019542,2]
[360568795,1746892291018,-400.0,0.00019542,2]
[360568796,1746892291028,-400.0,0.00019542,2]
[360568797,1746892291038,-604.66,0.00019542,2]
[360568798,1746892291048,-366.49379015,0.00019542,2]
[360568799,1746892291060,-400.0,0.00019542,2]
[360568800,1746892291070,-400.0,0.00019542,2]
[360568801,1746892291079,-400.0,0.00019542,2]
[360568802,1746892291089,-400.0,0.00019542,2]
[360568803,1746892291099,-400.0,0.00019542,2]
[360568804,1746892291109,-400.0,0.00019542,2]
[360568805,1746892291119,-1122.56,0.00019542,2]
[360568806,1746892291128,-876.89,0.00019542,2]
[360568807,1746892291138,-739.89,0.00019542,2]
[360568808,1746892291149,-705.51,0.00019542,2]
[360568809,1746892291158,-912.17,0.00019542,2]
[360568810,1746892291168,-400.0,0.00019542,2]
[360568811,1746892291178,-537.0,0.00019542,2]
[360568812,1746892291187,-794.68,0.00019542,2]
[360568813,1746892291197,-400.0,0.00019542,2]
[360568814,1746892291207,-400.0,0.00019542,2]
[360568815,1746892291217,-400.0,0.00019542,2]
[360568816,1746892291227,-400.0,0.00019542,2]
[360568817,1746892291236,-586.16,0.00019542,2]
[360568818,1746892291246,-1208.24,0.00019542,2]
[360568819,1746892291256,-915.12,0.00019542,2]
[360568820,1746892291266,-400.0,0.00019542,2]
[360568821,1746892291276,-400.0,0.00019542,2]
[360568822,1746892291285,-556.42,0.00019542,2]
[360568823,1746892291296,-1156.88,0.00019542,2]
[360568824,1746892291306,-2684.88,0.00019542,2]
[360568825,1746892291316,-400.0,0.00019542,2]
[360568826,1746892291325,-642.95,0.00019542,2]
[360568827,1746892291335,-400.0,0.00019542,2]
[360568828,1746892291345,-400.0,0.00019542,2]
[360568829,1746892291355,-528.010002,0.00019542,2]
[360568830,1746892291365,-400.0,0.00019542,2]
[360568831,1746892291375,-577.4,0.00019542,2]
[360568832,1746892291384,-1062.13,0.00019542,2]
[360568833,1746892291395,-456.88,0.00019542,2]
[360568834,1746892291404,-3974.16,0.00019542,2]
[360568835,1746892291414,-400.0,0.00019542,2]
[360568836,1746892291423,-400.0,0.00019542,2]
[360568837,1746892291433,-400.0,0.00019542,2]
[360568838,1746892291442,-1124.82,0.00019542,2]
[360568839,1746892291452,-1073.13,0.00019542,2]
[360568840,1746892291462,-400.0,0.00019542,2]
[360568841,1746892291471,-298.85933837,0.00019542,2]
[360568842,1746892291482,-400.0,0.00019542,2]
[360568843,1746892291492,-400.0,0.00019542,2]
[360568844,1746892291502,-5700.74,0.00019542,2]
[360568845,1746892291512,-1865.71,0.00019542,2]
[360568846,1746892291521,-400.0,0.00019542,2]
[360568847,1746892291531,-151.0,0.00019542,2]
[360568848,1746892291540,-635.07,0.00019542,2]
[360568849,1746892291552,-400.0,0.00019542,2]
[360568851,1746892291562,-264.416226,0.00019542,2]
[360568852,1746892291571,-319.40443456,0.00019542,2]
[360568853,1746892291581,-1160.88,0.00019542,2]
[360568854,1746892291591,-566.81,0.00019542,2]
[360568855,1746892291601,-400.0,0.00019542,2]
[360568856,1746892291611,-1915.97,0.00019542,2]
[360568857,1746892291621,-3252.23,0.00019542,2]
[360568858,1746892291630,-416.66,0.00019542,2]
[360568859,1746892291640,-699.66,0.00019542,2]
[360568860,1746892291649,-400.0,0.00019542,2]
[360568861,1746892291659,-303.955261,0.00019542,2]
[360568862,1746892291669,-400.0,0.00019542,2]
[360568863,1746892291679,-3364.91,0.00019542,2]
[360568864,1746892291688,-400.0,0.00019542,2]
[360568865,1746892291698,-400.0,0.00019542,2]
[360568866,1746892291708,-1590.33,0.00019542,2]
[360568867,1746892291717,-303.955261,0.00019542,2]
[360568868,1746892291727,-400.0,0.00019542,2]
[360568869,1746892291737,-239.68321097,0.00019542,2]
[360568870,1746892291747,-400.0,0.00019542,2]
[360568871,1746892291756,-448.36,0.00019542,2]
[360568872,1746892291766,-400.0,0.00019542,2]
[360568873,1746892291776,-400.0,0.00019542,2]
[360568874,1746892291786,-400.0,0.00019542,2]
[360568875,1746892291798,-1000.0,0.00019542,2]
[360568876,1746892291807,-400.0,0.00019542,2]
[360568877,1746892291817,-400.0,0.00019542,2]
[360568878,1746892291826,-400.0,0.00019542,2]
[360568879,1746892291836,-406.04,0.00019542,2]
[360568880,1746892291845,-2080.27,0.00019542,2]
[360568881,1746892291854,-640.99,0.00019542,2]
[360568882,1746892291864,-438.39,0.00019542,2]
[360568883,1746892291874,-790.83,0.00019542,2]
[360568884,1746892291883,-400.0,0.00019542,2]
[360568885,1746892291893,-400.0,0.00019542,2]
[360568886,1746892291902,-42182.54,0.00019542,2]
[360568887,1746892291911,-400.0,0.00019542,2]
[360568888,1746892291920,-400.0,0.00019542,2]
[360568889,1746892291930,-400.0,0.00019542,2]
[360568890,1746892291939,-300.0,0.00019542,2]
[360568891,1746892291948,-3388.49,0.00019542,2]
[360568892,1746892291957,-400.0,0.00019542,2]
[360568893,1746892291966,-400.0,0.00019542,2]
[360568894,1746892291976,-400.0,0.00019542,2]
[360568895,1746892291985,-400.0,0.00019542,2]
[360568896,1746892291995,-668.26,0.00019542,2]
[360568897,1746892292004,-555.21,0.00019542,2]
[360568898,1746892292014,-400.0,0.00019542,2]
[360568899,1746892292023,-2257.2,0.00019542,2]
[360568900,1746892292033,-400.0,0.00019542,2]
[360568901,1746892292042,-580.33,0.00019542,2]
[360568902,1746892292054,-14266.7,0.00019542,2]
[360568903,1746892292068,-400.0,0.00019542,2]
[360568904,1746892292077,-400.0,0.00019542,2]
[360568905,1746892292086,-400.0,0.00019542,2]
[360568906,1746892292096,-400.0,0.00019542,2]
[360568907,1746892292108,-357.16,0.00019542,2]
[360568908,1746892292117,-439.63414142,0.00019542,2]
[360568909,1746892292127,-400.0,0.00019542,2]
[360568910,1746892292139,-758.59,0.00019542,2]
[360568911,1746892292150,-269.46181157,0.00019542,2]
[360568912,1746892292159,-246.26646164,0.00019542,2]
[360568913,1746892292168,-669.11,0.00019542,2]
[360568914,1746892292178,-582.71,0.00019542,2]
[360568915,1746892292187,-2125.32,0.00019542,2]
[360568916,1746892292196,-231.05360797,0.00019542,2]
[360568917,1746892292206,-400.0,0.00019542,2]
[360568918,1746892292215,-728.2,0.00019542,2]
[360568919,1746892292225,-400.0,0.00019542,2]
[360568920,1746892292235,-400.0,0.00019542,2]
[360568921,1746892292244,-561.29,0.00019542,2]
[360568922,1746892292254,-400.0,0.00019542,2]
[360568923,1746892292263,-400.0,0.00019542,2]
[360568924,1746892292272,-961.71,0.00019542,2]
[360568925,1746892292281,-546.77,0.00019542,2]
[360568926,1746892292290,-400.0,0.00019542,2]
[360568927,1746892292303,-400.0,0.00019542,2]
[360568928,1746892292311,-572.78,0.00019542,2]
[360568929,1746892292320,-400.0,0.00019542,2]
[360568930,1746892292330,-400.0,0.00019542,2]
[360568931,1746892292340,-400.0,0.00019542,2]
[360568932,1746892292349,-2649.83,0.00019542,2]
[360568933,1746892292358,-400.0,0.00019542,2]
[360568934,1746892292368,-1863.4,0.00019542,2]
[360568935,1746892292377,-606.25,0.00019542,2]
[360568936,1746892292387,-400.0,0.00019542,2]
[360568937,1746892292396,-400.0,0.00019542,2]
[360568938,1746892292406,-400.0,0.00019542,2]
[360568939,1746892292415,-6994.67,0.00019542,2]
[360568940,1746892292425,-400.0,0.00019542,2]
[360568941,1746892292435,-519.92,0.00019542,2]
[360568942,1746892292445,-498.77,0.00019542,2]
[360568943,1746892292455,-400.0,0.00019542,2]
[360568944,1746892292464,-400.0,0.00019542,2]
[360568945,1746892292474,-400.0,0.00019542,2]
[360568946,1746892292483,-13166.1,0.00019542,2]
[360568947,1746892292493,-877.12,0.00019542,2]
[360568948,1746892292502,-400.0,0.00019542,2]
[360568949,1746892292513,-1654.23,0.00019542,2]
[360568950,1746892292523,-400.0,0.00019542,2]
[360568951,1746892292534,-500.0,0.00019542,2]